bitfinex/quotes_ETHUSD_20241207
["timestamp","ask_amount","ask_price","bid_price","bid_amount"]
[1733558972403,3.9173726,3998.1,3998.0,0.728153]
[1733558972568,4.96543757,3998.1,3998.0,0.728153]
[1733558973101,4.96538927,3998.1,3998.0,0.85318961]
[1733558973304,4.96538927,3998.1,3998.0,0.75318961]
[1733558973504,4.96538927,3998.1,3998.0,0.728153]
[1733558974005,4.96538927,3998.1,3998.0,0.85318923]
[1733558974201,4.96538927,3998.1,3998.0,0.628153]
[1733558974568,3.9173243,3998.1,3998.0,0.078153]
[1733558974768,6.15982734,3998.1,3998.0,0.078153]
[1733558975920,3.9173243,3998.1,3998.0,0.078153]
[1733558976368,5.48973564,3998.1,3998.0,0.078153]
[1733558976979,6.24263564,3998.1,3998.0,0.078153]
[1733558977807,1.75091,3997.9,3997.8,0.1]
[1733558977975,4.96563035,3997.9,3997.8,0.17815449]
[1733558978513,6.28255609,3997.9,3997.8,0.07815449]
[1733558978670,6.28255609,3997.9,3997.1,0.55]
[1733558978671,1.75122,3997.2,3997.1,0.55]
[1733558978873,1.75126,3997.1,3997.0,0.1]
[1733558979201,1.75126,3997.1,3997.0,0.30322133]
[1733558980227,1.75126,3997.1,3997.0,0.85322133]
[1733558980574,1.30011928,3997.3,3997.0,0.75322133]
[1733558980794,2.61797069,3997.2,3997.1,0.20322133]
[1733558980998,1.75122,3997.2,3997.1,0.20322133]
[1733558981922,2.61796809,3997.2,3997.1,0.20322133]
[1733558982497,2.61795186,3997.2,3997.1,0.20322133]
[1733558983684,2.61795186,3997.2,3997.1,0.07816205]
[1733558983888,2.61795186,3997.2,3997.1,0.20322776]
[1733558984316,2.61795186,3997.2,3997.1,0.07816205]
[1733558984592,0.86673186,3997.2,3997.1,0.20322767]
[1733558984903,0.86673186,3997.2,3997.1,0.07816205]
[1733558985042,0.86673186,3997.2,3997.1,0.20322764]
[1733558985246,0.86673186,3997.2,3997.1,0.07816205]
[1733558986107,0.86673186,3997.2,3997.1,0.20322767]
[1733558986953,0.86673186,3997.2,3997.1,0.07816205]
[1733558987139,0.86673186,3997.2,3997.1,0.20322765]
[1733558988811,3.05108222,3997.3,3997.1,0.20322765]
[1733558989108,3.05108222,3997.3,3997.2,0.07816205]
[1733558989313,2.61770534,3997.3,3997.2,0.07816205]
[1733558989716,3.91748871,3997.3,3997.2,0.0781659]
[1733558989916,2.61770534,3997.3,3997.2,0.0781659]
[1733558992349,1.75118,3997.3,3997.2,0.0781659]
[1733558992713,0.7529,3997.4,3997.2,0.0781659]
[1733558992912,0.7529,3997.4,3997.3,0.0781659]
[1733558993159,3.37041522,3997.4,3997.3,0.0781659]
[1733558994114,4.66995069,3997.4,3997.3,0.0781659]
[1733558994461,3.91705069,3997.4,3997.3,0.0781659]
[1733558994660,2.61751522,3997.4,3997.3,0.0781659]
[1733558995149,3.35045184,3997.4,3997.3,0.0781659]
[1733558995351,5.69815349,3997.4,3997.3,0.0781659]
[1733558996478,4.64998731,3997.4,3997.3,0.0781659]
[1733558996650,1.75126,3997.1,3997.0,0.1]
[1733558996859,6.42457525,3997.1,3997.0,0.07817178]
[1733558997059,1.75135,3996.9,3996.4,0.1]
[1733558997362,1.75153,3996.5,3996.4,0.1]
[1733558997552,1.75153,3996.5,3996.4,0.17817723]
[1733558997974,1.75153,3996.5,3996.4,0.07817723]
[1733558998179,1.75153,3996.5,3996.4,0.20326081]
[1733558998337,1.75153,3996.5,3996.4,0.07817723]
[1733559000389,3.07116086,3996.5,3996.4,0.07817723]
[1733559000677,5.01824864,3996.5,3996.4,0.07817723]
[1733559000878,5.01825232,3996.5,3996.4,0.07817723]
[1733559001082,5.01825232,3996.5,3995.8,0.1]
[1733559001083,1.75157,3996.4,3995.8,0.1]
[1733559001283,1.75171,3996.1,3995.9,0.20328551]
[1733559001440,1.75182,3995.9,3995.8,0.1]
[1733559001642,1.75182,3995.9,3995.8,0.30329101]
[1733559003961,1.75182,3995.9,3995.8,0.17818885]
[1733559004908,1.75182,3995.9,3995.8,0.07818885]
[1733559006857,1.7517,3996.2,3995.8,0.07818885]
[1733559007098,1.7517,3996.2,3995.6,0.1]
[1733559007099,1.7517,3996.2,3995.9,0.20328865]
[1733559007280,1.7517,3996.2,3996.0,0.07818885]
[1733559007490,1.7517,3996.2,3996.1,0.07818885]
[1733559008065,1.08095196,3996.3,3996.1,0.07818885]
[1733559008377,1.08095196,3996.3,3996.2,0.07818885]
[1733559008708,1.75157,3996.4,3996.2,0.07818885]
[1733559008895,1.75141,3996.8,3996.0,0.9231]
[1733559009070,1.75141,3996.8,3995.6,1.75191]
[1733559009071,1.75131,3997.0,3996.4,0.8231]
[1733559009269,1.75131,3997.0,3996.5,0.26388594]
[1733559009595,1.75131,3997.0,3996.6,0.07818542]
[1733559009765,1.75131,3997.0,3996.7,0.07818542]
[1733559009966,3.22026895,3997.0,3996.4,0.8231]
[1733559010277,1.75141,3996.8,3996.5,0.26386314]
[1733559010483,1.08095196,3996.7,3996.6,0.07817947]
[1733559011525,2.83239196,3996.7,3996.6,0.07817947]
[1733559012020,2.83239196,3996.7,3996.6,0.26387834]
[1733559012388,2.83239196,3996.7,3996.6,0.26387831]
[1733559013318,3.15443185,3996.7,3996.6,0.26387831]
[1733559016391,1.08095196,3996.7,3996.6,0.26387831]
[1733559020153,1.7514,3996.8,3996.6,0.07817944]
[1733559020451,2.83229196,3997.0,3996.7,0.07817944]
[1733559020626,2.83229196,3997.0,3996.8,0.07817944]
[1733559020828,2.83229196,3997.0,3996.6,0.1]
[1733559021051,2.83229196,3997.0,3996.7,0.07817654]
[1733559021349,2.83229196,3997.0,3996.6,0.1]
[1733559021350,2.83229196,3997.0,3996.8,0.07817654]
[1733559021560,2.83229196,3997.0,3996.6,0.1]
[1733559021849,2.79892797,3997.5,3996.8,0.7835]
[1733559022012,0.86558071,3997.4,3996.9,0.20324693]
[1733559022219,1.04780797,3997.5,3997.0,0.07817647]
[1733559022484,2.34617903,3997.6,3997.1,0.07816459]
[1733559022617,2.34617903,3997.6,3996.8,0.7835]
[1733559022618,1.91343525,3997.6,3997.2,0.07816459]
[1733559022821,1.91343525,3997.6,3996.8,0.7835]
[1733559022822,2.1640682,3997.6,3997.3,0.07816459]
[1733559023166,0.86562728,3997.5,3997.4,0.07816459]
[1733559023669,3.87976993,3997.7,3997.4,0.07816459]
[1733559023834,0.86572407,3997.6,3997.5,0.07816459]
[1733559024362,0.86572407,3997.6,3997.0,0.1]
[1733559024676,0.86572407,3997.6,3997.1,0.35954351]
[1733559024974,0.86572407,3997.6,3997.2,0.35954351]
[1733559025119,0.86572407,3997.6,3997.3,0.20322015]
[1733559025328,0.86572407,3997.6,3997.4,0.20322015]
[1733559025520,0.86572407,3997.6,3997.5,0.20322015]
[1733559025911,0.86572407,3997.6,3997.0,0.1]
[1733559026115,0.86572407,3997.6,3997.5,0.07816137]
[1733559026316,0.86572407,3997.6,3997.5,0.20321956]
[1733559026918,2.61677407,3997.6,3997.5,0.07816137]
[1733559027581,2.61677407,3997.6,3997.0,0.1]
[1733559027582,0.86572407,3997.6,3997.0,0.1]
[1733559027780,2.83204196,3997.5,3997.0,0.1]
[1733559028850,1.08095196,3997.2,3997.0,0.1]
[1733559029245,1.08095196,3997.2,3997.1,0.20323311]
[1733559029971,0.75680029,3997.5,3997.1,0.20323311]
[1733559029972,1.08095196,3997.5,3997.1,0.20323311]
[1733559030200,1.08095196,3997.5,3997.0,0.1]
[1733559030405,0.8658352,3997.4,3997.1,0.20322564]
[1733559030574,0.8658352,3997.4,3997.2,0.20322564]
[1733559030916,0.8658352,3997.4,3997.3,0.20322564]
[1733559031196,1.08095196,3997.5,3997.3,0.20322564]
[1733559031197,2.83205196,3997.5,3997.3,0.20322564]
[1733559031403,2.83205196,3997.5,3997.4,0.07816371]
[1733559031613,3.69788851,3997.5,3997.4,0.07816371]
[1733559032079,2.83205196,3997.5,3997.4,0.07816371]
[1733559032273,4.3248218,3997.5,3997.4,0.07816371]
[1733559032499,5.62358018,3997.5,3997.4,0.07816371]
[1733559032805,6.71727573,3997.5,3997.4,0.07816371]
[1733559033762,6.71727573,3997.5,3997.4,0.07816632]
[1733559035996,5.66946776,3997.5,3997.4,0.07816632]
[1733559036502,6.71727573,3997.5,3997.4,0.07816632]
[1733559037410,6.71727573,3997.5,3997.4,0.20323245]
[1733559037803,6.7173878,3997.5,3997.4,0.20323245]
[1733559038932,5.66957983,3997.5,3997.4,0.20323245]
[1733559039490,6.7173878,3997.5,3997.4,0.20323245]
[1733559041200,5.66957983,3997.5,3997.4,0.20323245]
[1733559041601,5.66964499,3997.5,3997.4,0.20323245]
[1733559042103,6.71745296,3997.5,3997.4,0.07816632]
[1733559042602,6.42981479,3997.5,3997.4,0.07816632]
[1733559042821,8.00206407,3997.5,3997.4,0.07816632]
[1733559043136,1.75138,3996.9,3996.6,0.1]
[1733559043337,2.83235196,3996.8,3996.7,0.20325472]
[1733559043541,2.87917471,3996.8,3996.7,0.20325472]
[1733559044441,2.87917471,3996.8,3996.7,0.20324873]
[1733559046071,2.87917471,3996.8,3996.7,0.19793527]
[1733559046388,1.12777471,3996.8,3996.7,0.19793527]
[1733559047870,1.12777471,3996.8,3996.7,0.07817186]
[1733559049533,0.04682275,3996.8,3996.7,0.07817186]
[1733559050053,1.08095196,3997.1,3996.7,0.07817186]
[1733559050232,0.04670542,3996.8,3996.5,0.1]
[1733559050433,1.08095196,3997.1,3996.6,0.07817119]
[1733559050630,0.04668807,3996.7,3996.5,0.1]
[1733559050938,1.08095196,3997.1,3996.6,0.07817094]
[1733559051269,0.86666857,3997.0,3996.7,0.07817094]
[1733559051434,2.38067116,3997.1,3996.8,0.07817144]
[1733559051636,2.38067116,3997.1,3996.9,0.07817144]
[1733559051968,2.38067116,3997.1,3996.5,0.1]
[1733559051969,2.38067116,3997.1,3997.0,0.07817144]
[1733559052172,3.24734106,3997.1,3997.0,0.07817144]
[1733559052348,2.1663891,3997.1,3997.0,0.07817144]
[1733559052961,0.8666699,3997.1,3997.0,0.17817144]
[1733559054236,2.16753503,3997.1,3997.0,0.17817144]
[1733559054735,5.08162904,3997.1,3997.0,0.17817144]
[1733559055560,5.08162904,3997.1,3997.0,0.07817144]
[1733559055759,5.74689325,3997.1,3997.0,0.07817144]
[1733559055963,7.49885548,3997.1,3997.0,0.07817144]
[1733559056150,7.49885548,3997.1,3997.0,0.20324565]
[1733559056461,6.45151343,3997.1,3997.0,0.20324565]
[1733559056660,8.02252651,3997.1,3997.0,0.20324565]
[1733559057241,6.45151343,3997.1,3997.0,0.07817144]
[1733559057738,6.49830643,3997.1,3997.0,0.07817144]
[1733559057939,8.07181491,3997.1,3997.0,0.20324859]
[1733559058454,1.75142,3996.8,3996.3,0.1]
[1733559058644,0.8672949,3996.7,3996.5,0.1]
[1733559058842,0.04672362,3996.7,3996.6,0.20325062]
[1733559059046,0.9141326,3996.7,3996.6,0.20325062]
[1733559059246,0.86740898,3996.7,3996.6,0.20325062]
[1733559059583,3.96671044,3996.7,3996.6,0.20325062]
[1733559059942,2.6655726,3996.7,3996.6,0.20325062]
[1733559060389,3.966716,3996.7,3996.6,0.20325062]
[1733559060753,2.66559567,3996.7,3996.6,0.20325062]
[1733559060952,3.96674375,3996.7,3996.6,0.20325062]
[1733559061160,3.96674375,3996.7,3996.5,0.1]
[1733559061360,3.96674375,3996.7,3996.6,0.20325111]
[1733559061361,1.79816362,3996.7,3996.6,0.20325111]
[1733559061571,3.96676714,3996.7,3996.6,0.20325111]
[1733559064302,3.96676714,3996.7,3996.5,0.1]
[1733559064456,0.86744141,3996.6,3996.5,0.1]
[1733559064658,0.86744141,3996.6,3996.5,0.30325176]
[1733559064859,0.91407543,3996.6,3996.5,0.30325176]
[1733559065893,0.04661381,3996.6,3996.5,0.30325176]
[1733559066097,0.91408309,3996.6,3996.5,0.20325176]
[1733559066399,2.66556309,3996.6,3996.5,0.20325176]
[1733559066900,0.91408309,3996.6,3996.5,0.30325176]
[1733559067500,0.91408309,3996.6,3995.8,0.72300796]
[1733559067800,0.04661381,3996.6,3995.9,0.22815248]
[1733559067970,0.04661381,3996.6,3996.0,1.24539394]
[1733559068287,0.04661381,3996.6,3995.9,0.22815248]
[1733559068288,1.79810381,3996.6,3995.9,0.22815248]
[1733559068480,1.75149,3996.6,3995.9,0.22815248]
[1733559068796,0.04659647,3996.5,3995.9,0.22815248]
[1733559069000,1.79816647,3996.5,3995.6,0.55]
[1733559069157,1.79816647,3996.5,3995.4,1.55851681]
[1733559069158,1.75162,3996.3,3995.7,1.24192287]
[1733559069361,1.75162,3996.3,3995.4,0.55]
[1733559069583,0.04646618,3996.2,3995.6,0.55]
[1733559070274,0.04646618,3996.2,3995.4,0.55]
[1733559070473,0.04646618,3996.2,3995.7,0.4671]
[1733559073575,3.55736358,3996.5,3995.7,0.4671]
[1733559073775,0.0464133,3996.1,3995.7,0.4671]
[1733559074024,1.80581358,3996.5,3995.7,0.4671]
[1733559074189,2.16833382,3996.4,3995.7,0.4671]
[1733559074513,0.04646535,3996.4,3995.8,0.26301429]
[1733559074877,2.80050358,3996.6,3995.8,0.26301429]
[1733559075078,0.046448,3996.3,3995.8,0.26301429]
[1733559075300,2.80050358,3996.6,3995.8,0.26301429]
[1733559075616,0.04643065,3996.2,3995.8,0.26301429]
[1733559075912,2.80050358,3996.6,3995.8,0.26301429]
[1733559076217,3.21717596,3996.5,3995.8,0.26301429]
[1733559076381,0.86726495,3996.4,3995.8,0.26301429]
[1733559076584,0.04646535,3996.4,3995.8,0.26301429]
[1733559077178,1.30089155,3996.5,3995.8,0.26301429]
[1733559077387,0.046448,3996.3,3996.1,0.55]
[1733559077610,3.48587594,3997.1,3996.2,1.47406237]
[1733559077611,0.04646535,3996.4,3996.2,1.47406237]
[1733559077818,1.57352037,3997.1,3996.3,0.12507737]
[1733559077819,1.04901358,3997.0,3996.3,0.12507737]
[1733559078007,3.2169865,3996.9,3996.4,0.12507737]
[1733559078206,3.2169865,3996.9,3996.5,0.12507737]
[1733559078207,2.16799214,3996.8,3996.5,0.12507737]
[1733559078526,0.86722138,3996.7,3996.5,0.12507737]
[1733559078816,0.86722138,3996.7,3996.2,1.0171]
[1733559078817,1.04901358,3997.1,3996.7,0.4671]
[1733559079016,0.8299,3997.4,3996.8,0.12507737]
[1733559079017,0.86714971,3997.0,3996.8,0.12507737]
[1733559079220,1.04901358,3997.4,3996.9,0.12507737]
[1733559079520,2.1677979,3997.3,3997.0,0.20324225]
[1733559079719,1.04901358,3997.4,3997.1,0.20324225]
[1733559080016,2.16765961,3997.3,3997.2,0.20324225]
[1733559080184,1.04901358,3997.7,3997.3,0.4671]
[1733559080381,2.1672497,3997.6,3997.4,0.20324225]
[1733559080722,1.04901358,3997.7,3997.5,0.20324225]
[1733559080897,1.04901358,3997.7,3997.3,0.4671]
[1733559080898,0.8668279,3997.6,3997.3,0.4671]
[1733559081094,1.59675813,3997.8,3997.4,0.20320152]
[1733559081322,1.59675813,3997.8,3997.3,0.69144154]
[1733559081323,0.54774455,3997.8,3997.5,0.20320152]
[1733559081616,1.04901358,3998.0,3997.6,0.20319039]
[1733559081829,4.40526233,3998.2,3997.7,0.26424297]
[1733559081830,3.21539719,3997.9,3997.7,0.26424297]
[1733559082128,2.83174196,3998.2,3997.3,0.4671]
[1733559082129,0.86655445,3997.8,3997.3,0.4671]
[1733559082422,1.04901358,3998.0,3997.4,0.50081135]
[1733559082610,0.86636341,3997.9,3997.5,0.50081135]
[1733559082923,0.86638257,3997.8,3997.6,0.0781533]
[1733559083124,1.29957385,3997.9,3997.7,0.0781533]
[1733559083304,0.86637142,3997.8,3997.3,0.4671]
[1733559083496,1.87891358,3998.0,3997.3,0.4671]
[1733559083497,3.17848743,3998.0,3997.4,0.50076139]
[1733559083691,2.16581349,3997.9,3997.6,0.55]
[1733559083892,0.86623964,3997.8,3997.7,0.07815336]
[1733559084699,0.86623964,3997.8,3997.0,0.4671]
[1733559084887,4.09950743,3997.9,3997.1,0.20320152]
[1733559085083,2.1657253,3997.8,3997.2,0.20320152]
[1733559085284,2.1657253,3997.8,3997.3,0.07815431]
[1733559085285,0.86615145,3997.7,3997.3,0.07815431]
[1733559085516,0.86615145,3997.7,3997.4,0.07815431]
[1733559085718,4.09950743,3997.9,3997.5,0.07815431]
[1733559085883,5.78400528,3997.8,3997.5,0.07815431]
[1733559086083,0.86610911,3997.7,3997.6,0.07815431]
[1733559086854,0.81834874,3997.8,3997.6,0.07815431]
[1733559087137,2.34804853,3997.9,3997.3,0.12505441]
[1733559087311,0.8660117,3997.8,3997.4,0.07815701]
[1733559087506,0.8660117,3997.8,3997.1,0.4671]
[1733559087507,0.04706015,3997.8,3997.5,0.07815701]
[1733559087706,0.04706015,3997.8,3997.6,0.07815701]
[1733559087916,1.29903495,3998.1,3997.7,0.07815701]
[1733559087917,2.34804853,3998.1,3997.7,0.07815701]
[1733559088111,1.2743843,3998.0,3997.8,0.07815701]
[1733559088310,0.40846853,3998.0,3997.1,0.4671]
[1733559088509,1.04901358,3998.1,3997.2,0.20319981]
[1733559088705,0.86579913,3998.0,3997.3,0.07815377]
[1733559088911,0.86579913,3998.0,3997.4,0.07815377]
[1733559089111,0.86579913,3998.0,3997.5,0.07815377]
[1733559089339,2.61667913,3998.0,3997.6,0.07815377]
[1733559089544,1.36225193,3997.9,3997.1,0.4671]
[1733559089850,2.58082,3997.9,3997.2,0.20320693]
[1733559090003,0.86574953,3997.8,3997.3,0.07815651]
[1733559090203,0.86574953,3997.8,3997.4,0.07815651]
[1733559090449,0.86574953,3997.8,3997.5,0.07815651]
[1733559090745,0.86574953,3997.8,3997.1,0.4671]
[1733559090939,0.86574953,3997.8,3997.2,0.2032088]
[1733559091115,0.86574953,3997.8,3997.3,0.07815723]
[1733559091311,3.30425656,3997.8,3997.4,0.07815723]
[1733559091511,2.43850703,3997.8,3997.5,0.07815723]
[1733559091826,2.43850703,3997.8,3997.1,0.4671]
[1733559092024,2.43850703,3997.8,3997.2,0.20321076]
[1733559092226,2.43850703,3997.8,3997.3,0.07815798]
[1733559092413,0.43174206,3997.7,3997.3,0.07815798]
[1733559092611,0.43174206,3997.7,3997.4,0.07815798]
[1733559092818,0.43174206,3997.7,3997.5,0.07815798]
[1733559093020,0.43174206,3997.7,3997.2,0.12505266]
[1733559093221,0.43174206,3997.7,3997.3,0.07815851]
[1733559093417,0.43174206,3997.7,3997.4,0.07815851]
[1733559093603,0.43174206,3997.7,3997.5,0.07815851]
[1733559093805,2.18275206,3997.7,3997.1,0.4671]
[1733559094119,2.18275206,3997.7,3997.2,0.20321228]
[1733559094319,2.18275206,3997.7,3997.3,0.07815857]
[1733559094523,2.18275206,3997.7,3997.4,0.07815857]
[1733559094717,0.43174206,3997.7,3997.5,0.07815857]
[1733559094931,0.43174206,3997.7,3997.1,0.4671]
[1733559094932,1.75105,3997.6,3997.1,0.4671]
[1733559095251,1.75105,3997.6,3997.2,0.20321224]
[1733559095447,1.75105,3997.6,3997.3,0.07815855]
[1733559095617,1.75105,3997.6,3997.4,0.07815855]
[1733559095823,1.75105,3997.6,3997.5,0.07815855]
[1733559096855,1.75119,3997.3,3996.1,0.55]
[1733559097023,1.75119,3997.3,3996.3,0.55]
[1733559097212,1.75119,3997.3,3996.5,0.55]
[1733559097546,1.75119,3997.3,3996.6,0.20323052]
[1733559097711,1.75119,3997.3,3996.7,0.20323052]
[1733559097906,2.13420986,3997.3,3996.8,0.20323052]
[1733559098146,2.13420986,3997.3,3996.9,0.07816558]
[1733559098311,2.13420986,3997.3,3997.0,0.07816558]
[1733559098506,2.13420986,3997.3,3997.1,0.07816558]
[1733559098828,2.13420986,3997.3,3996.0,1.54805196]
[1733559098829,2.13420986,3997.3,3997.2,0.07816558]
[1733559099027,2.13420986,3997.3,3996.0,0.4671]
[1733559099235,1.47965814,3997.2,3996.1,0.20323278]
[1733559099435,2.55678,3996.9,3996.2,0.20323278]
[1733559099634,2.55678,3996.9,3996.3,0.20323278]
[1733559099834,2.55678,3996.9,3996.4,0.20323278]
[1733559100042,0.8054,3996.9,3996.5,0.20323278]
[1733559100240,1.7514,3996.8,3996.6,0.07816645]
[1733559100434,1.7514,3996.8,3996.7,0.07816645]
[1733559100925,1.75155,3996.5,3995.5,0.4671]
[1733559101126,1.75155,3996.5,3995.6,0.20326771]
[1733559101330,1.75155,3996.5,3995.7,0.20326771]
[1733559101535,1.75155,3996.5,3995.8,0.20326771]
[1733559101724,1.75155,3996.5,3995.5,0.4671]
[1733559101725,1.75158,3996.4,3995.9,0.20326771]
[1733559101942,1.75158,3996.4,3996.0,0.20326771]
[1733559102115,1.75158,3996.4,3996.1,0.07817989]
[1733559102319,1.75158,3996.4,3996.2,0.07817989]
[1733559102549,0.04654399,3996.3,3995.6,0.55]
[1733559102767,0.04654399,3996.3,3995.7,0.20328041]
[1733559102962,0.04654399,3996.3,3995.8,0.20328041]
[1733559103155,0.04654399,3996.3,3995.9,0.20328041]
[1733559103321,0.04654399,3996.3,3996.0,0.20328041]
[1733559103521,0.04654399,3996.3,3996.1,0.07818477]
[1733559103823,0.04654399,3996.3,3996.2,0.07818477]
[1733559104556,0.200723,3996.5,3996.2,0.07818477]
[1733559104761,0.200723,3996.5,3995.6,0.55]
[1733559104762,0.200723,3996.5,3996.3,0.07818477]
[1733559104922,0.04656134,3996.4,3995.7,0.1250956]
[1733559105125,0.04656134,3996.4,3995.8,0.20328045]
[1733559105374,2.00712,3996.8,3995.9,0.20328045]
[1733559105375,1.7515,3996.6,3995.9,0.20328045]
[1733559105572,1.7515,3996.6,3996.0,0.20328045]
[1733559105573,0.04649689,3996.5,3996.0,0.20328045]
[1733559105819,0.04649689,3996.5,3996.1,0.20328045]
[1733559106016,0.04649689,3996.5,3996.2,0.20328045]
[1733559106317,0.04649689,3996.5,3996.3,0.07818485]
[1733559106477,0.04649689,3996.5,3996.4,0.07818485]
[1733559108516,1.79802689,3996.5,3996.4,0.07818485]
[1733559112226,2.11149278,3996.5,3996.4,0.07818485]
[1733559112530,2.91689278,3996.5,3996.4,0.07818485]
[1733559112711,2.91689278,3996.5,3995.5,0.4671]
[1733559112910,2.60342689,3996.5,3995.6,0.12509258]
[1733559113097,2.60342689,3996.5,3995.7,0.20327544]
[1733559113300,2.60342689,3996.5,3995.8,0.20327544]
[1733559113498,2.60342689,3996.5,3995.9,0.20327544]
[1733559113722,2.60342689,3996.5,3996.0,0.20327544]
[1733559114040,2.99743278,3996.5,3996.1,0.07818286]
[1733559114240,2.99743278,3996.5,3996.2,0.07818286]
[1733559114521,2.99743278,3996.5,3996.3,0.07818286]
[1733559114725,2.99743278,3996.5,3995.5,0.4671]
[1733559114889,2.99743278,3996.5,3995.6,0.20327443]
[1733559115088,2.99743278,3996.5,3995.7,0.20327443]
[1733559115424,2.15941847,3996.4,3995.8,0.20327443]
[1733559115624,2.20593004,3996.4,3995.9,0.20327443]
[1733559115783,2.20593004,3996.4,3996.0,0.20327443]
[1733559115986,0.45435004,3996.4,3996.1,0.07818247]
[1733559116227,0.45435004,3996.4,3996.2,0.07818247]
[1733559116397,0.45435004,3996.4,3996.3,0.07818247]
[1733559119589,0.45435004,3996.4,3995.5,0.4671]
[1733559119794,0.04651157,3996.4,3995.6,0.20327367]
[1733559120020,0.04651157,3996.4,3995.7,0.20327367]
[1733559120228,0.04651157,3996.4,3995.8,0.20327367]
[1733559120433,0.04651157,3996.4,3995.9,0.20327367]
[1733559120634,0.04651157,3996.4,3996.0,0.07818218]
[1733559120841,0.04651157,3996.4,3996.1,0.20327367]
[1733559121049,0.04651157,3996.4,3996.2,0.07818218]
[1733559121334,0.04651157,3996.4,3996.3,0.07818218]
[1733559122314,0.41495292,3996.4,3996.3,0.07818218]
[1733559126242,0.41495292,3996.4,3996.3,0.20327364]
[1733559126947,2.16652292,3996.4,3996.3,0.20327364]
[1733559129277,2.16652292,3996.4,3996.3,0.20327719]
[1733559131852,0.04651157,3996.4,3996.3,0.20327719]
[1733559132564,0.04651157,3996.4,3996.3,0.20327754]
[1733559132871,0.04647954,3996.4,3996.3,0.20327754]
[1733559133083,1.75149,3996.6,3996.3,0.20327754]
[1733559133242,0.04647954,3996.4,3995.5,0.4671]
[1733559133444,1.75149,3996.6,3995.6,0.42519229]
[1733559133754,0.04646219,3996.3,3995.7,0.20327729]
[1733559133942,0.04649689,3996.5,3995.8,0.20327729]
[1733559134262,1.75149,3996.6,3995.9,0.20327729]
[1733559134582,0.04647954,3996.4,3996.0,0.20327729]
[1733559134887,1.75149,3996.6,3996.1,0.20327729]
[1733559134888,0.04646219,3996.3,3996.1,0.20327729]
[1733559135181,1.75149,3996.6,3996.2,0.07818357]
[1733559135380,1.75149,3996.6,3995.6,0.221915]
[1733559135381,1.75149,3996.6,3996.3,0.07818357]
[1733559135588,1.75149,3996.6,3996.4,0.07818357]
[1733559135789,1.75149,3996.6,3996.5,0.07818357]
[1733559135978,1.64665054,3996.6,3995.5,2.21906]
[1733559136146,3.88142554,3996.7,3995.5,2.21906]
[1733559136351,0.86597807,3996.6,3995.6,0.0781839]
[1733559136587,1.08095196,3996.3,3995.7,0.0781839]
[1733559136885,2.83258196,3996.3,3995.8,0.0781839]
[1733559137187,2.83258196,3996.3,3995.9,0.0781839]
[1733559137349,2.83258196,3996.3,3996.0,0.0781839]
[1733559137550,2.83258196,3996.3,3996.1,0.0781839]
[1733559137795,2.83258196,3996.3,3996.2,0.0781839]
[1733559138099,1.08095196,3996.3,3996.2,0.0781839]
[1733559139483,1.08095196,3996.3,3996.2,0.07818538]
[1733559139784,1.08095196,3996.3,3995.5,0.4671]
[1733559139958,1.08095196,3996.3,3996.2,0.07818538]
[1733559140361,1.30031848,3996.4,3996.2,0.07818538]
[1733559140591,1.04901358,3996.5,3996.3,0.07818538]
[1733559140794,0.8668736,3996.4,3995.5,0.4671]
[1733559140978,1.04901358,3996.5,3995.6,0.30009411]
[1733559141153,2.16718526,3996.4,3995.7,0.07818411]
[1733559141350,2.16718526,3996.4,3995.6,0.22191]
[1733559141351,0.8668741,3996.3,3995.8,0.07818411]
[1733559141550,1.08095196,3996.3,3995.9,0.07818411]
[1733559141797,1.08095196,3996.3,3996.0,0.07818411]
[1733559141959,1.08095196,3996.3,3996.1,0.07818411]
[1733559142160,1.08095196,3996.3,3996.2,0.07818411]
[1733559142493,3.24952591,3996.3,3996.2,0.26458584]
[1733559142659,4.0118889,3996.3,3996.2,0.26458584]
[1733559142861,4.01225735,3996.3,3996.2,0.26458584]
[1733559143054,4.01225735,3996.3,3996.2,0.26459822]
[1733559143258,1.84331495,3996.3,3996.2,0.26459822]
[1733559143585,1.08095196,3996.3,3996.2,0.26459822]
[1733559145965,1.08095196,3996.3,3995.5,0.42821522]
[1733559146311,2.1707147,3996.2,3995.6,2.28641479]
[1733559146448,0.86828588,3996.1,3995.7,1.24275165]
[1733559146692,1.05008118,3996.2,3995.8,1.24275165]
[1733559146947,1.05008118,3996.2,3995.6,1.04366314]
[1733559146948,0.86846358,3996.1,3995.6,1.04366314]
[1733559147182,0.86847528,3996.0,3995.6,2.28680272]
[1733559147352,1.05008118,3996.2,3995.6,2.28680272]
[1733559147687,0.86848752,3996.1,3995.6,2.28680272]
[1733559147869,0.04645595,3996.1,3995.6,2.28680272]
[1733559148076,0.04645595,3996.1,3995.7,1.24313958]
[1733559148254,1.05008118,3996.3,3995.8,1.24313958]
[1733559148455,0.0464457,3996.0,3995.6,1.04366314]
[1733559148651,1.05008118,3996.2,3995.6,1.52260145]
[1733559148903,0.04642834,3995.9,3995.7,1.2505058]
[1733559149067,1.05008118,3996.2,3995.6,1.52260145]
[1733559149252,0.04641099,3995.8,3995.7,1.25051819]
[1733559149452,1.05008118,3996.2,3995.7,1.25051819]
[1733559149677,2.1712458,3996.1,3995.8,1.25051819]
[1733559149878,1.05008118,3996.2,3995.6,1.04366314]
[1733559150083,0.86849426,3996.1,3995.6,1.04366314]
[1733559150288,1.05008118,3996.2,3995.6,2.29415341]
[1733559150541,0.86848688,3996.1,3995.6,2.29415341]
[1733559150828,0.86847675,3996.0,3995.6,2.29415341]
[1733559151037,1.05008118,3996.2,3995.6,2.29415341]
[1733559151193,2.17121672,3996.1,3995.6,2.29415341]
[1733559151395,0.86848669,3996.0,3995.6,2.29415341]
[1733559151589,1.05008118,3996.2,3995.6,2.29415341]
[1733559151802,2.17124268,3996.1,3995.6,2.29415341]
[1733559152003,0.86849707,3996.0,3995.6,2.29415341]
[1733559152295,1.05008118,3996.2,3995.6,2.29415341]
[1733559152623,2.17130788,3996.1,3995.6,2.29415341]
[1733559152827,0.86852315,3996.0,3995.6,2.29415341]
[1733559153125,1.05008118,3996.2,3995.6,2.29415341]
[1733559153432,2.17126638,3996.1,3995.6,2.29415341]
[1733559153632,1.05008118,3996.2,3995.6,2.29415341]
[1733559153829,0.86852091,3996.1,3995.7,1.25049027]
[1733559154133,0.86852091,3996.1,3995.6,1.04366314]
[1733559154134,1.05008118,3996.2,3995.8,1.25049027]
[1733559154346,2.1712946,3996.1,3995.6,1.04366314]
[1733559154549,1.05008118,3996.2,3995.6,1.04366314]
[1733559154848,0.86854616,3996.1,3995.6,1.04366314]
[1733559155015,1.05008118,3996.2,3995.6,2.28934249]
[1733559155216,2.17134253,3996.1,3995.7,1.24565669]
[1733559155421,1.05008118,3996.2,3995.8,1.24565669]